bitfinex/quotes_SOLUSD_20250129
["timestamp","ask_amount","ask_price","bid_price","bid_amount"]
[1738178167313,1.718639,225.47,225.46,0.0001]
[1738178167908,0.887,225.47,225.46,0.0001]
[1738178168101,33.76940877,225.48,225.46,0.0001]
[1738178168412,33.76940877,225.5,225.46,0.0001]
[1738178168715,1.0,225.6,225.46,33.76950877]
[1738178168716,33.76940877,225.54,225.46,33.76950877]
[1738178168912,33.76940877,225.56,225.48,38.20430877]
[1738178169122,33.76940877,225.6,225.52,33.76940877]
[1738178169293,33.76940877,225.62,225.53,0.33706125]
[1738178169615,33.76940877,225.6,225.53,0.33706125]
[1738178169919,0.03,225.63,225.59,23.902374]
[1738178170103,0.03,225.63,225.61,33.76940877]
[1738178170304,0.03,225.63,225.62,0.33641487]
[1738178170895,0.86096555,225.63,225.51,34.10618712]
[1738178171132,33.76940877,225.62,225.53,33.76940877]
[1738178171289,0.03,225.63,225.57,33.76940877]
[1738178171494,33.79940877,225.63,225.57,312.0]
[1738178171714,33.79940877,225.63,225.55,33.76940877]
[1738178172021,33.79940877,225.63,225.56,0.33678628]
[1738178172202,33.79940877,225.63,225.57,0.33686346]
[1738178172520,0.03,225.63,225.55,33.76940877]
[1738178172729,0.03,225.63,225.57,33.76940877]
[1738178173097,33.76940877,225.6,225.54,0.33678414]
[1738178173301,0.03,225.63,225.55,34.10633772]
[1738178173522,0.03,225.63,225.57,33.76940877]
[1738178173831,0.03,225.63,225.58,23.776884]
[1738178173999,0.03,225.63,225.54,1.0]
[1738178174200,33.74728095,225.63,225.55,24.11361624]
[1738178174428,33.74728095,225.63,225.56,0.33676763]
[1738178174635,33.71728095,225.61,225.57,0.33676645]
[1738178175006,0.8866,225.58,225.53,0.33724467]
[1738178175200,33.71728095,225.59,225.54,0.33708687]
[1738178175536,33.71728095,225.59,225.55,0.33719082]
[1738178175726,33.71728095,225.59,225.56,0.33701142]
[1738178175906,33.71728095,225.59,225.5,0.3370526]
[1738178176112,33.71728095,225.59,225.51,0.33713837]
[1738178176439,33.71728095,225.59,225.49,6.4728]
[1738178176630,33.71728095,225.59,225.5,0.33713759]
[1738178176841,33.71728095,225.59,225.51,0.33713766]
[1738178177048,33.71728095,225.59,225.49,10.9074]
[1738178177216,34.60378095,225.59,225.5,0.33716348]
[1738178177542,34.60378095,225.59,225.51,0.33727144]
[1738178177736,34.60378095,225.59,225.5,30.0]
[1738178177737,33.71728095,225.57,225.5,30.0]
[1738178177945,33.71728095,225.51,225.47,0.33735142]
[1738178178109,33.71728095,225.48,225.46,0.0001]
[1738178178313,0.83161952,225.47,225.46,0.0001]
[1738178178609,0.83171758,225.47,225.46,0.0001]
[1738178179337,1.71871758,225.47,225.46,0.0001]
[1738178180841,0.83174485,225.47,225.46,0.0001]
[1738178181037,0.83174485,225.47,225.36,29.40128907]
[1738178181217,33.71728095,225.42,225.36,29.40128907]
[1738178182638,33.71728095,225.42,225.31,0.063]
[1738178182843,33.71728095,225.46,225.33,1.0]
[1738178183039,34.60428095,225.48,225.34,23.902374]
[1738178183233,33.71728095,225.48,225.36,23.902374]
[1738178183945,33.71728095,225.46,225.39,30.0]
[1738178184138,33.71728095,225.44,225.39,30.0]
[1738178184447,33.71728095,225.42,225.39,30.0]
[1738178185623,33.71728095,225.4,225.39,30.0]
[1738178185823,33.71728095,225.4,225.31,0.063]
[1738178186049,33.71728095,225.33,225.32,30.0]
[1738178186251,33.49093747,225.33,225.32,30.0]
[1738178186434,34.37843747,225.33,225.32,30.0]
[1738178186631,34.60478095,225.35,225.32,30.0]
[1738178186827,34.60478095,225.35,225.31,0.063]
[1738178187039,33.71728095,225.35,225.31,0.063]
[1738178187243,33.71728095,225.37,225.31,0.063]
[1738178187460,33.71728095,225.37,225.31,4.5012]
[1738178187958,33.71728095,225.41,225.31,4.62669]
[1738178188171,33.71728095,225.39,225.32,30.0]
[1738178188372,0.8872,225.43,225.32,34.4379]
[1738178188373,33.71728095,225.43,225.32,34.4379]
[1738178188666,33.71728095,225.41,225.32,34.4379]
[1738178188864,33.71728095,225.39,225.32,30.0]
[1738178189070,33.71728095,225.37,225.32,30.0]
[1738178189234,33.71728095,225.39,225.31,0.063]
[1738178189844,33.71728095,225.41,225.31,0.063]
[1738178190045,33.71728095,225.41,225.31,4.5012]
[1738178190435,34.60448095,225.41,225.32,34.4379]
[1738178190957,33.71728095,225.45,225.34,30.12549]
[1738178191268,0.83186874,225.49,225.34,30.12549]
[1738178191269,33.71728095,225.49,225.38,0.12549]
[1738178191454,34.60418095,225.49,225.39,23.776884]
[1738178191851,33.71728095,225.47,225.38,30.0]
[1738178192169,33.71728095,225.49,225.39,24.153354]
[1738178192341,0.03,225.54,225.44,0.12549]
[1738178192545,0.03,225.54,225.44,23.902374]
[1738178192742,0.03,225.54,225.46,0.12549]
[1738178193144,0.03,225.54,225.52,0.12549]
[1738178193353,0.03,225.54,225.53,20.0]
[1738178193544,0.03,225.54,225.53,51.329674]
[1738178194370,0.03,225.63,225.55,31.0]
[1738178194567,0.03,225.63,225.56,4.4334]
[1738178195273,0.03,225.63,225.58,30.0]
[1738178195466,0.03,225.63,225.59,24.153354]
[1738178195671,0.03,225.63,225.62,24.278844]
[1738178195872,33.71728095,225.75,225.64,0.12549]
[1738178196167,33.71728095,225.69,225.59,2.0]
[1738178196369,33.71728095,225.71,225.62,24.153354]
[1738178196676,33.71728095,225.75,225.64,54.153354]
[1738178196863,33.71728095,225.75,225.64,0.37647]
[1738178197045,33.71728095,225.71,225.64,0.37647]
[1738178197251,33.71728095,225.73,225.64,0.37647]
[1738178197444,33.71728095,225.75,225.64,84.153354]
[1738178197662,33.71728095,225.73,225.64,84.153354]
[1738178198180,33.71728095,225.71,225.64,30.0]
[1738178198478,33.71728095,225.69,225.59,4.4326]
[1738178198770,33.71728095,225.73,225.62,24.153354]
[1738178198973,33.71728095,225.75,225.63,0.12549]
[1738178199575,33.71728095,225.73,225.62,0.37647]
[1738178199784,33.71728095,225.69,225.62,30.0]
[1738178200092,33.71728095,225.71,225.63,0.37647]
[1738178200677,33.71728095,225.69,225.62,30.0]
[1738178201680,33.71728095,225.74,225.63,24.153354]
[1738178201883,33.71728095,225.74,225.64,30.0]
[1738178202174,0.03,225.69,225.64,30.0]
[1738178202385,33.71728095,225.66,225.64,30.0]
[1738178202751,33.71728095,225.68,225.64,30.0]
[1738178203771,33.73570359,225.69,225.64,30.0]
[1738178203978,0.03,225.69,225.65,33.70570359]
[1738178204283,0.03,225.69,225.65,63.70570359]
[1738178205154,0.03,225.69,225.67,33.70570359]
[1738178205477,0.03,225.69,225.67,30.0]
[1738178206187,0.03,225.69,225.68,24.153354]
[1738178206359,0.03,225.77,225.71,44.153354]
[1738178206554,0.03,225.77,225.76,0.37647]
[1738178207066,0.03,225.77,225.76,4.80587]
[1738178207784,0.03,225.77,225.76,59.708244]
[1738178208075,0.03,225.77,225.76,58.582754]
[1738178208294,0.03,225.77,225.73,33.70570359]
[1738178208778,0.03,225.77,225.75,33.70570359]
[1738178209090,0.03,225.77,225.76,28.708244]
[1738178209663,0.03,225.77,225.76,58.708244]
[1738178210681,0.03,225.86,225.8,33.70570359]
[1738178210978,0.9155,225.86,225.8,33.70570359]
[1738178211280,33.70570359,225.85,225.76,68.13510359]
[1738178211881,33.70570359,225.85,225.78,33.70570359]
[1738178212056,33.70570359,225.83,225.76,30.0]
[1738178212254,33.70570359,225.81,225.72,38.13580359]
[1738178212672,33.70570359,225.81,225.74,33.70570359]
[1738178212956,33.70570359,225.81,225.72,33.70570359]
[1738178213152,33.70570359,225.79,225.7,40.31320359]
[1738178213358,33.70570359,225.77,225.7,40.31320359]
[1738178213574,33.70570359,225.81,225.72,33.70570359]
[1738178214473,0.03,225.86,225.76,33.70570359]
[1738178214474,33.70570359,225.85,225.76,33.70570359]
[1738178214863,33.70570359,225.85,225.78,33.70570359]
[1738178215051,0.03,225.86,225.82,33.70570359]
[1738178215257,0.03,225.86,225.84,33.70570359]
[1738178215979,0.03,225.86,225.85,0.37647]
[1738178216757,0.03,225.86,225.85,24.153354]
[1738178217277,0.03,225.86,225.85,28.581054]
[1738178217577,0.03,225.86,225.85,58.706544]
[1738178217778,0.03,225.86,225.85,59.706544]
[1738178217980,0.03,225.86,225.85,66.793144]
[1738178218171,0.03,225.92,225.89,24.278844]
[1738178218377,0.03,225.92,225.91,34.08217359]
[1738178218679,0.03,225.92,225.91,33.70570359]
[1738178218876,0.03,225.92,225.87,33.70570359]
[1738178219076,33.70570359,225.91,225.83,33.70570359]
[1738178219380,0.03,225.92,225.86,0.37647]
[1738178219564,0.03,225.92,225.89,33.70570359]
[1738178219964,0.03,225.92,225.9,0.37647]
[1738178220177,0.03,225.92,225.87,23.776884]
[1738178220367,0.03,225.92,225.83,30.0]
[1738178220879,33.61822633,225.89,225.81,4.4285]
[1738178221267,33.61822633,225.89,225.82,0.37647]
[1738178221683,33.61822633,225.89,225.81,4.4285]
[1738178221872,33.61822633,225.85,225.75,4.4296]
[1738178222068,33.61822633,225.85,225.78,0.12549]
[1738178222273,33.61822633,225.87,225.78,0.37647]
[1738178222474,33.61822633,225.89,225.79,0.12549]
[1738178222674,33.61822633,225.87,225.78,23.902374]
[1738178223189,33.61822633,225.87,225.8,0.12549]
[1738178223888,33.61822633,225.87,225.75,4.4296]
[1738178224098,33.61822633,225.8,225.72,30.0]
[1738178224268,33.61822633,225.76,225.69,4.4937]
[1738178224583,33.61822633,225.74,225.69,0.063]
[1738178225284,33.61822633,225.76,225.69,0.063]
[1738178225798,33.61822633,225.74,225.69,0.063]
[1738178226386,0.8857,225.81,225.69,0.063]
[1738178226387,33.61822633,225.76,225.69,0.063]
[1738178226691,33.61822633,225.74,225.69,0.063]
[1738178226891,33.61822633,225.7,225.69,0.063]
[1738178227275,33.61822633,225.7,225.54,8.1298]
[1738178227276,34.50432633,225.7,225.56,30.0]
[1738178227477,34.50432633,225.7,225.58,24.153354]
[1738178227478,33.61822633,225.67,225.58,24.153354]
[1738178227699,33.61822633,225.69,225.58,0.37647]
[1738178228292,33.61822633,225.71,225.61,0.37647]
[1738178228486,33.61822633,225.73,225.61,24.153354]
[1738178228702,33.61822633,225.75,225.65,0.37647]
[1738178229012,33.61822633,225.81,225.7,24.153354]
[1738178229299,33.61822633,225.81,225.71,4.4304]
[1738178229476,33.61822633,225.77,225.67,4.4312]
[1738178229786,1.71607998,225.81,225.65,4.4314]
[1738178229787,33.61822633,225.73,225.65,4.4314]
[1738178230193,33.61822633,225.73,225.64,24.06]
[1738178230380,33.61822633,225.71,225.64,4.06]
[1738178230698,33.61822633,225.69,225.64,4.06]
[1738178230997,33.61822633,225.69,225.58,30.0]
[1738178231206,1.8307396,225.79,225.61,20.0]
[1738178231207,33.61822633,225.67,225.61,20.0]
[1738178231509,33.61822633,225.65,225.57,0.063]
[1738178231673,33.61822633,225.63,225.57,0.063]
[1738178231879,33.61822633,225.59,225.57,0.063]
[1738178232181,0.83124854,225.58,225.57,0.063]
[1738178232381,33.61822633,225.59,225.57,0.063]
[1738178232775,33.61822633,225.63,225.57,0.063]
[1738178233696,33.61822633,225.61,225.57,0.063]
[1738178233999,1.0,225.57,225.46,0.063]
[1738178234202,33.61822633,225.47,225.46,0.063]
[1738178235281,34.61822633,225.47,225.46,0.0001]
[1738178235597,35.50522633,225.47,225.46,0.0001]
[1738178235778,35.33716123,225.47,225.46,0.0001]
[1738178235974,35.33716123,225.47,225.33,0.063]
[1738178236180,33.61822633,225.37,225.33,0.063]
[1738178236484,33.61822633,225.35,225.33,0.063]
[1738178237204,0.83212873,225.34,225.33,0.063]
[1738178237381,33.61822633,225.35,225.33,0.063]
[1738178238105,33.61822633,225.39,225.33,0.063]
[1738178238316,33.61822633,225.41,225.33,0.063]
[1738178238685,33.61822633,225.43,225.33,0.063]
[1738178239009,33.61822633,225.41,225.33,0.063]
[1738178239380,33.61822633,225.45,225.34,24.153354]
[1738178239713,33.61822633,225.45,225.35,4.4375]
[1738178239880,33.61822633,225.45,225.35,34.4375]
[1738178240209,33.61822633,225.45,225.36,24.153354]
[1738178240377,33.64822633,225.47,225.36,24.153354]
[1738178240574,33.64822633,225.47,225.38,24.153354]
[1738178240792,33.61822633,225.45,225.37,30.0]
[1738178240997,33.61822633,225.39,225.35,30.0]
[1738178241209,33.61822633,225.37,225.35,30.0]
[1738178241386,33.61822633,225.37,225.33,0.063]
[1738178241589,34.50592633,225.29,225.25,30.0]
[1738178241780,34.50592633,225.29,225.12,4.442]
[1738178241781,33.61822633,225.27,225.12,4.442]
[1738178241979,34.50592633,225.29,225.12,34.442]
[1738178242209,33.61822633,225.27,225.15,20.0]
[1738178242512,33.61822633,225.25,225.17,30.0]
[1738178242692,33.61822633,225.21,225.17,30.0]
[1738178242893,33.61822633,225.21,225.17,29.5]
[1738178243416,33.61822633,225.21,225.1,0.063]
[1738178243589,33.61822633,225.21,225.1,30.063]
[1738178243783,33.61822633,225.21,225.11,4.4422]
[1738178243984,33.61822633,225.19,225.1,30.063]
[1738178244199,33.61822633,225.23,225.1,30.063]
[1738178244483,33.61822633,225.25,225.13,20.0]
[1738178244823,33.61822633,225.23,225.13,20.0]
[1738178245003,34.4508751,225.27,225.15,0.37647]
[1738178245301,33.61822633,225.27,225.17,30.0]
[1738178245501,33.61822633,225.29,225.18,23.776884]
[1738178245877,33.61822633,225.29,225.19,4.4406]
[1738178246083,33.61822633,225.29,225.17,30.0]
[1738178246290,33.61822633,225.25,225.19,30.0]
[1738178246514,33.61822633,225.27,225.19,30.0]
[1738178246722,33.61822633,225.31,225.2,23.776884]
[1738178247019,33.61822633,225.27,225.19,30.0]
[1738178247193,33.61822633,225.25,225.19,30.0]
[1738178247395,33.61822633,225.27,225.19,30.0]
[1738178248192,33.61822633,225.27,225.19,34.4405]
[1738178248795,33.61822633,225.29,225.2,23.776884]
[1738178248999,33.61822633,225.29,225.2,53.776884]
[1738178249613,33.61822633,225.31,225.2,53.776884]
[1738178249932,33.61822633,225.31,225.21,0.37647]
[1738178250134,33.61822633,225.31,225.22,34.4401]
[1738178250448,0.83231623,225.3,225.22,30.0]
[1738178250615,34.50582633,225.31,225.22,30.0]
[1738178250932,33.61822633,225.29,225.22,30.0]
[1738178251311,33.61822633,225.31,225.22,30.0]
[1738178251911,33.61822633,225.33,225.23,23.776884]
[1738178252108,33.61822633,225.31,225.24,4.4397]
[1738178252314,33.61822633,225.33,225.24,4.4397]
[1738178252730,33.61822633,225.31,225.23,30.0]
[1738178252928,33.61822633,225.29,225.23,30.0]
[1738178253243,33.61822633,225.29,225.24,30.0]
[1738178253738,3.38526376,225.37,225.24,30.0]
[1738178253739,33.61822633,225.31,225.24,30.0]
[1738178253943,33.61822633,225.29,225.24,30.0]
[1738178254113,34.06192633,225.33,225.24,30.0]
[1738178254736,33.61822633,225.31,225.24,30.0]
[1738178254923,33.61822633,225.29,225.24,30.0]
[1738178255136,33.61822633,225.27,225.24,30.0]
[1738178255450,33.61822633,225.31,225.24,30.0]
[1738178255847,33.61822633,225.29,225.24,30.0]
[1738178256343,34.06202633,225.29,225.24,30.0]
[1738178256505,33.61822633,225.27,225.2,0.063]
[1738178256705,33.61822633,225.27,225.2,34.5034]
[1738178257106,33.61822633,225.27,225.2,0.063]
[1738178257301,33.61822633,225.27,225.2,4.5034]
[1738178258032,33.61822633,225.31,225.2,4.5034]
[1738178258239,33.61822633,225.31,225.21,23.776884]
[1738178258444,33.61822633,225.25,225.2,0.063]
[1738178258613,20.81883256,225.27,225.2,34.5034]
[1738178258819,20.81883256,225.29,225.2,34.5034]
[1738178259006,20.81883256,225.29,225.2,30.063]
[1738178259206,20.81883256,225.27,225.2,0.063]
[1738178259402,20.81883256,225.25,225.2,0.063]
[1738178259620,20.81883256,225.21,225.2,0.063]
[1738178260328,20.81883256,225.23,225.2,0.063]
[1738178260636,0.83265277,225.22,225.2,0.063]
[1738178261042,20.81883256,225.21,225.2,0.063]
[1738178261645,0.83273744,225.21,225.2,0.063]
[1738178263152,20.81883256,225.27,225.2,0.063]
[1738178263439,0.832518,225.26,225.2,0.063]
[1738178263627,20.81883256,225.25,225.2,0.063]
[1738178263810,1.5534,225.29,225.2,0.063]
[1738178263811,20.81883256,225.23,225.2,0.063]
[1738178264205,0.83262839,225.22,225.2,0.063]
[1738178264409,20.81883256,225.23,225.2,0.063]
[1738178264819,20.81883256,225.25,225.2,0.063]
[1738178265038,0.83261994,225.24,225.2,0.063]
[1738178265348,20.84883256,225.29,225.2,4.5034]
[1738178265560,0.4738,225.29,225.2,4.5034]
[1738178265866,0.86241026,225.29,225.2,4.5034]
[1738178266144,22.12504282,225.29,225.2,4.5034]
[1738178266523,20.81883256,225.25,225.2,0.063]
[1738178266727,20.81883256,225.21,225.2,0.063]
[1738178268267,20.81883256,225.23,225.2,0.063]
[1738178268433,0.83265201,225.22,225.2,0.063]
[1738178268764,1.27665201,225.22,225.2,0.063]
[1738178269369,20.81883256,225.21,225.2,0.063]
[1738178269533,1.0,225.19,225.17,0.063]
[1738178269865,21.65181233,225.18,225.17,0.063]
[1738178272143,21.65181233,225.18,225.1,0.063]
[1738178272351,20.81883256,225.11,225.1,0.063]
[1738178272575,20.81883256,225.17,225.1,0.063]
[1738178272741,0.83298009,225.16,225.1,0.063]
[1738178275353,20.81883256,225.15,225.1,0.063]
[1738178275554,0.83300322,225.14,225.1,0.063]
[1738178276555,0.83289735,225.14,225.1,0.063]
[1738178277167,20.81883256,225.11,225.1,0.063]
[1738178277475,0.83289735,225.14,225.1,0.063]
[1738178277646,20.81883256,225.13,225.1,0.063]
[1738178277840,20.81883256,225.11,225.1,0.063]
[1738178278065,20.81883256,225.13,225.1,0.063]
[1738178278391,20.81883256,225.11,225.1,0.063]
[1738178278555,20.81883256,225.15,225.1,0.063]
[1738178278739,0.83299524,225.14,225.1,0.063]
[1738178278943,0.83289361,225.16,225.1,34.5052]
[1738178279144,0.83281282,225.18,225.1,30.063]
[1738178279790,20.81883256,225.12,225.1,30.063]
[1738178279960,0.8332644,225.11,225.1,30.063]
[1738178280691,1.8332644,225.11,225.1,29.7206]
[1738178280994,1.8332644,225.11,225.1,29.6521]
[1738178281205,1.8332644,225.11,224.97,0.063]
[1738178281206,1.0,225.09,224.97,0.063]
[1738178281412,41.63766512,224.98,224.97,0.063]
[1738178281697,20.81883256,224.92,224.8,7.12908933]
[1738178282010,20.81883256,224.92,224.91,3.3334]
[1738178282011,63.47175094,224.92,224.91,3.3334]
[1738178282290,63.47175094,224.92,224.76,1.7335867]
[1738178282291,1.0,224.81,224.76,1.2335867]
[1738178282596,33.98019542,224.78,224.7,6.81266951]
[1738178282768,33.98019542,224.8,224.7,6.81266951]
[1738178282972,33.98019542,224.8,224.68,1.0]
[1738178283170,33.98019542,224.75,224.62,17.799683]
[1738178283474,33.98019542,224.82,224.67,0.5]
[1738178283684,33.98019542,224.82,224.63,30.0]
[1738178283685,0.5,224.81,224.65,0.62549]
[1738178283879,0.5,224.81,224.67,0.5]
[1738178284086,33.98019542,224.88,224.73,0.5]
[1738178284289,0.83395147,224.94,224.81,0.5]
[1738178284477,0.83395147,224.94,224.85,20.0]
[1738178284678,1.33370937,224.93,224.85,20.0]
[1738178284880,33.98019542,224.9,224.85,20.0]
[1738178285074,0.83387829,224.89,224.8,4.22]
[1738178285278,33.98019542,224.86,224.79,20.0]
[1738178285486,0.8341833,224.85,224.79,20.0]
[1738178285903,1.3341833,224.85,224.76,316.22]
[1738178286087,34.48019542,224.8,224.74,8.1945]
[1738178286290,0.5,224.75,224.64,1.5428]
[1738178286471,0.83453239,224.74,224.62,6.145]
[1738178286669,34.48019542,224.78,224.65,0.5]
[1738178286874,0.83436413,224.77,224.65,20.0]
[1738178287084,33.98019542,224.74,224.62,6.145]
[1738178287297,1.33445292,224.73,224.62,6.145]
[1738178287908,0.5,224.7,224.62,6.145]
[1738178288111,0.83472974,224.69,224.62,6.145]
[1738178288321,0.83466987,224.71,224.62,10.5968]
[1738178288481,0.83466987,224.71,224.62,6.145]
[1738178288482,0.5,224.67,224.62,6.145]
[1738178288682,0.5,224.65,224.56,4.24]
[1738178288900,0.83470541,224.66,224.57,0.5]
[1738178289217,0.5,224.71,224.61,20.0]
[1738178289508,0.5,224.59,224.54,6.6213]
[1738178289678,0.5,224.61,224.54,11.0747]
[1738178289885,0.83505816,224.65,224.54,11.0747]
[1738178289886,0.5,224.63,224.54,11.0747]
[1738178290182,0.5,224.61,224.54,10.5747]
[1738178290386,1.33495377,224.61,224.54,10.5747]
[1738178290684,0.5,224.59,224.54,6.1213]
[1738178290921,0.5,224.6,224.54,6.1213]
[1738178291095,0.5,224.58,224.54,6.1213]
[1738178291298,0.5,224.5,224.48,2.0]
[1738178291498,0.83545403,224.49,224.48,2.0]
[1738178291929,0.5,224.4,224.39,0.0124]
[1738178292093,33.98019542,224.4,224.39,0.0124]
[1738178292285,1.33615426,224.4,224.39,0.0124]
[1738178292632,0.83580478,224.43,224.39,0.0124]
[1738178292785,0.5,224.45,224.39,0.0124]
[1738178292985,0.83557438,224.48,224.39,4.4688]
[1738178293380,0.5,224.43,224.39,0.0124]
[1738178293585,0.83569846,224.42,224.39,0.0124]
[1738178294009,0.5,224.41,224.39,0.0124]
[1738178294215,34.81602871,224.4,224.39,0.0124]
[1738178295204,0.5,224.41,224.39,0.0124]
[1738178295486,0.83575998,224.43,224.39,0.0124]
[1738178295719,34.57511181,224.4,224.39,0.0124]
[1738178296019,35.41108267,224.4,224.39,0.0124]
[1738178296485,0.5,224.43,224.39,0.0124]
[1738178296689,0.83568171,224.43,224.39,34.08751181]
[1738178296884,0.83548958,224.49,224.44,20.0]
[1738178297090,1.0,224.63,224.44,20.0]
[1738178297091,0.5,224.56,224.47,34.07511181]
[1738178297313,0.5,224.5,224.46,4.4551]
[1738178297497,0.8353864,224.52,224.46,4.4551]
[1738178297824,0.5,224.5,224.43,34.07511181]
[1738178297991,0.5,224.45,224.41,34.07511181]
[1738178298192,0.5,224.42,224.39,0.0124]
[1738178298430,1.33569783,224.46,224.39,34.08751181]
[1738178298605,0.83569783,224.46,224.43,34.07511181]
[1738178298824,0.83569783,224.46,224.39,0.0124]
[1738178298825,34.07511181,224.45,224.39,0.0124]
[1738178298991,34.57511181,224.43,224.39,0.0124]
[1738178299194,0.5,224.46,224.41,34.07511181]
[1738178299406,34.07511181,224.73,224.39,38.54381181]
[1738178299407,0.83544557,224.45,224.39,38.54381181]
[1738178299616,1.33544557,224.45,224.39,38.54381181]
[1738178299795,0.5,224.42,224.39,0.0124]
[1738178300002,0.83571765,224.41,224.39,0.0124]
[1738178300196,0.5,224.4,224.39,0.0124]
[1738178301219,0.83577527,224.4,224.39,0.0124]
[1738178301403,1.33567815,224.44,224.39,0.0124]
[1738178301720,0.83567815,224.44,224.39,34.08751181]
[1738178302824,0.83567815,224.44,224.39,0.0124]
[1738178302825,0.5,224.4,224.39,0.0124]
[1738178303326,1.33584819,224.4,224.39,0.0124]
[1738178304032,0.5,224.26,224.18,34.07511181]
[1738178304191,0.5,224.31,224.25,34.07511181]
[1738178304390,0.83608007,224.3,224.28,34.07511181]
[1738178304615,0.5,224.31,224.28,34.07511181]
[1738178305421,0.83612624,224.36,224.3,34.07511181]
[1738178305623,0.5,224.37,224.29,34.07511181]
[1738178305830,1.33586254,224.36,224.34,34.07511181]
[1738178306134,0.5,224.36,224.32,34.07511181]
[1738178306427,0.12549,224.45,224.31,34.07511181]
[1738178306428,0.5,224.34,224.31,34.07511181]
[1738178306598,0.5,224.34,224.3,20.98542378]
[1738178306801,0.5,224.31,224.28,20.98542378]
[1738178306994,0.5,224.26,224.24,20.98542378]
[1738178307237,0.5,224.26,224.22,20.98542378]
[1738178307593,0.5,224.24,224.22,20.98542378]
[1738178308627,0.5,224.24,224.23,34.12150038]
[1738178308990,0.5,224.26,224.23,34.12150038]
[1738178309819,0.83628132,224.29,224.25,34.12150038]
[1738178310018,1.33608691,224.35,224.28,34.12150038]
[1738178310232,0.5,224.33,224.27,34.12150038]
[1738178310435,0.5,224.28,224.27,34.12150038]
[1738178311004,1.33610614,224.34,224.27,38.58030038]
[1738178311204,0.83592538,224.38,224.33,34.12150038]
[1738178311446,0.5,224.32,224.29,34.12150038]
[1738178311604,0.5,224.34,224.29,34.12150038]
[1738178311808,0.83592538,224.38,224.33,34.12150038]
[1738178312045,0.5,224.4,224.31,34.12150038]
[1738178312046,0.5,224.33,224.31,34.12150038]
[1738178312329,0.5,224.31,224.29,34.12150038]
[1738178312623,0.5,224.33,224.29,34.12150038]
[1738178313138,0.5,224.33,224.31,34.12150038]
[1738178313506,0.5,224.42,224.35,20.0]
[1738178313712,0.5,224.41,224.4,34.12150038]
[1738178313908,0.5,224.43,224.4,34.12150038]
[1738178314102,0.5,224.41,224.4,34.12150038]
[1738178314732,0.53,224.39,224.38,34.12150038]
[1738178314935,0.5,224.37,224.36,34.12150038]
[1738178315100,0.03,224.39,224.36,34.12150038]
[1738178315423,0.03,224.39,224.38,34.12150038]
[1738178315424,1.36578228,224.39,224.38,34.12150038]
[1738178315603,0.53,224.39,224.38,34.12150038]
[1738178315802,0.5,224.37,224.36,34.12150038]
[1738178316024,0.5,224.35,224.32,34.12150038]
[1738178316233,0.86580208,224.39,224.34,34.12150038]
[1738178316433,1.36580208,224.39,224.38,34.12150038]
[1738178316617,0.03,224.39,224.38,34.12150038]
[1738178317108,0.53,224.39,224.38,34.12150038]
[1738178317309,0.5,224.35,224.34,34.12150038]
[1738178319148,0.5,224.35,224.32,34.12150038]
[1738178319329,0.5,224.29,224.25,34.12150038]
[1738178319532,0.5,224.29,224.27,34.12150038]
[1738178319835,0.5,224.32,224.27,34.12150038]
[1738178320043,0.5,224.32,224.31,34.12150038]
[1738178320404,0.5,224.37,224.31,34.12150038]
[1738178320609,0.03,224.39,224.36,34.12150038]
[1738178320838,0.03,224.39,224.38,34.12150038]
[1738178321140,0.03,224.39,224.29,35.62150038]
[1738178321141,0.5,224.37,224.36,34.12150038]
[1738178321330,0.03,224.39,224.34,34.12150038]
[1738178321331,0.5,224.35,224.34,34.12150038]
[1738178321708,0.5,224.36,224.34,34.12150038]